bitfinex/quotes_ETHUSD_20250329
["timestamp","ask_amount","ask_price","bid_price","bid_amount"]
[1743245666332,3.0,1873.6,1873.3,5.33799]
[1743245666694,3.0,1873.6,1873.4,5.33786]
[1743245666894,14.72973374,1873.8,1873.3,5.33799]
[1743245667095,6.81014337,1873.7,1873.3,5.33799]
[1743245667323,7.20198802,1873.7,1873.3,5.33799]
[1743245668232,7.20198802,1873.7,1873.3,10.67601]
[1743245668461,1.47297337,1873.7,1873.1,6.1512]
[1743245668671,1.47297337,1873.7,1873.5,5.33753]
[1743245668825,4.18998374,1873.8,1873.5,5.33745]
[1743245669026,4.18998374,1873.8,1873.5,10.67493]
[1743245669418,5.33652,1873.9,1873.6,5.33727]
[1743245669644,0.8199,1874.0,1873.5,0.7625]
[1743245669855,6.28073451,1874.1,1873.7,5.33676]
[1743245670126,0.62807345,1874.0,1873.8,5.33673]
[1743245670321,3.94483451,1874.1,1873.8,5.33673]
[1743245670523,3.37008374,1874.2,1873.9,5.33636]
[1743245670765,3.37008374,1874.3,1874.1,5.33589]
[1743245670952,6.0199,1874.6,1874.3,5.33532]
[1743245671260,8.33488,1874.5,1874.2,5.33557]
[1743245671435,3.60199,1874.5,1874.2,5.33557]
[1743245671833,0.60199,1874.5,1874.2,5.33557]
[1743245672166,3.60199,1874.5,1874.2,5.33557]
[1743245672462,3.60199,1874.5,1874.3,5.3353]
[1743245672645,8.93675,1874.5,1874.1,5.33588]
[1743245672853,8.93675,1874.5,1874.1,5.33569]
[1743245673222,8.93675,1874.5,1874.1,10.67138]
[1743245673860,8.93675,1874.5,1873.9,5.33643]
[1743245673861,3.60199,1874.5,1873.9,5.33643]
[1743245674029,3.0,1874.5,1874.2,10.67102]
[1743245674229,3.0,1874.5,1874.2,5.33545]
[1743245674450,3.40940617,1874.5,1874.2,5.33541]
[1743245674662,3.40940617,1874.5,1874.3,5.3353]
[1743245675368,3.40940617,1874.5,1874.2,5.33541]
[1743245675555,9.16710679,1874.5,1874.2,5.33541]
[1743245675866,3.83233679,1874.5,1874.2,5.33541]
[1743245676367,3.0,1874.5,1874.2,10.67089]
[1743245676561,3.0,1874.5,1874.3,5.33528]
[1743245677364,6.77593691,1874.5,1874.1,5.33586]
[1743245677663,3.0,1874.2,1873.8,5.33672]
[1743245677853,3.37008374,1874.1,1873.8,5.33672]
[1743245678651,8.33561,1874.2,1873.8,5.3365]
[1743245679766,8.33561,1874.2,1873.8,10.67306]
[1743245680904,3.0,1874.4,1874.2,5.33558]
[1743245681175,6.39325317,1874.5,1874.2,5.33544]
[1743245681371,6.39325317,1874.5,1874.0,5.33615]
[1743245681372,5.33516,1874.4,1874.0,5.33615]
[1743245681546,5.33516,1874.4,1874.1,5.33587]
[1743245683074,8.70524374,1874.4,1874.1,5.33587]
[1743245683243,9.53708317,1874.5,1874.1,10.67163]
[1743245684371,4.20225317,1874.5,1874.2,5.33556]
[1743245684882,9.53704317,1874.5,1874.2,5.33556]
[1743245685054,9.53704317,1874.5,1874.1,5.33576]
[1743245686076,14.87201317,1874.5,1874.1,5.33576]
[1743245686374,11.87975286,1874.5,1874.1,5.33576]
[1743245688485,8.70515374,1874.4,1874.1,5.33576]
[1743245688944,2.95463223,1874.3,1874.1,5.33576]
[1743245690582,2.95463223,1874.3,1874.1,10.67147]
[1743245691892,2.95463223,1874.3,1874.1,5.33571]
[1743245693508,8.58554545,1874.3,1874.0,5.33611]
[1743245693787,3.25009545,1874.3,1874.0,5.33611]
[1743245694396,3.25009545,1874.3,1874.0,10.67216]
[1743245694697,6.3604854,1874.5,1874.3,5.33523]
[1743245694993,3.3604854,1874.5,1874.3,5.33523]
[1743245695859,3.0,1874.6,1874.4,5.33504]
[1743245696693,3.0,1874.6,1874.3,6.11643]
[1743245697200,3.0,1874.6,1874.3,11.45159]
[1743245697808,8.28964223,1874.5,1874.0,0.7812]
[1743245697981,2.95463223,1874.1,1873.8,6.11779]
[1743245698385,2.95463223,1874.1,1873.8,6.11776]
[1743245698592,2.95463223,1874.1,1873.8,0.7812]
[1743245698902,2.95463223,1874.1,1873.8,6.11774]
[1743245699058,2.95463223,1874.1,1873.8,11.4543]
[1743245699258,2.95463223,1874.1,1873.9,5.33644]
[1743245699962,2.95463223,1874.1,1873.8,6.11774]
[1743245700162,2.95463223,1874.1,1873.7,5.33702]
[1743245700163,2.95463223,1873.9,1873.7,5.33702]
[1743245700397,2.95463223,1873.9,1873.8,5.33674]
[1743245701608,3.0,1874.2,1873.9,5.33636]
[1743245701809,3.8262,1874.3,1874.0,5.33595]
[1743245702116,6.78083223,1874.3,1874.0,5.33595]
[1743245702764,11.42524122,1874.3,1873.9,6.11759]
[1743245702970,2.95463223,1874.1,1873.8,5.33663]
[1743245703404,2.95463223,1874.1,1873.7,6.1182]
[1743245703712,2.95463223,1873.9,1873.7,0.7812]
[1743245704029,2.95463223,1873.9,1873.7,6.11821]
[1743245704210,2.95463223,1873.9,1873.7,6.11805]
[1743245704911,2.95463223,1873.9,1873.7,0.7812]
[1743245705373,2.95463223,1873.9,1873.7,6.11822]
[1743245705774,2.95463223,1874.0,1873.7,6.11822]
[1743245706014,13.62730223,1874.0,1873.7,0.7812]
[1743245706214,8.29094223,1874.0,1873.7,0.7812]
[1743245706816,8.29094223,1874.0,1873.7,6.11823]
[1743245707012,8.29094223,1874.0,1873.7,0.7812]
[1743245707581,13.62731223,1874.0,1873.6,5.33712]
[1743245707797,8.29094223,1874.0,1873.6,10.67427]
[1743245708005,8.29094223,1874.0,1873.6,6.481917]
[1743245708918,8.29094223,1874.0,1873.7,5.33702]
[1743245709112,8.29094223,1874.0,1873.6,5.33712]
[1743245709482,8.29094223,1874.0,1873.6,10.67426]
[1743245710018,8.29094223,1874.0,1873.6,5.33712]
[1743245710222,8.29094223,1874.0,1873.6,10.67425]
[1743245710524,8.29094223,1874.0,1873.6,6.481915]
[1743245710719,8.29094223,1874.0,1873.6,11.819045]
[1743245710884,5.33713,1873.7,1873.3,6.09052]
[1743245711388,2.95463223,1873.6,1873.3,6.09052]
[1743245711917,8.29197223,1873.6,1873.2,19.8383]
[1743245712118,2.95463223,1873.4,1873.1,5.3887]
[1743245712932,2.95463223,1873.4,1873.1,5.38857]
[1743245713109,2.95463223,1873.4,1873.1,0.05]
[1743245714039,8.29258223,1873.4,1873.1,0.05]
[1743245716429,13.63069223,1873.4,1873.1,0.05]
[1743245716938,5.33845,1873.2,1873.1,0.05]
[1743245717314,5.74300931,1873.2,1873.1,0.05]
[1743245718396,0.40455931,1873.2,1873.1,0.05]
[1743245718632,2.95463223,1873.3,1873.1,0.8326]
[1743245718907,8.29304223,1873.3,1873.1,0.05]
[1743245719139,6.11265,1873.2,1873.1,0.05]
[1743245719934,6.51624608,1873.2,1873.1,0.05]
[1743245721036,9.47087831,1873.2,1873.1,0.05]
[1743245721435,12.47087831,1873.2,1873.1,0.05]
[1743245721934,13.02087831,1873.2,1873.1,0.05]
[1743245722154,15.26520079,1873.2,1873.1,0.05]
[1743245723696,18.21983302,1873.2,1873.1,0.05]
[1743245724406,6.11408,1872.7,1872.6,5.0]
[1743245724615,9.06871223,1872.7,1872.6,5.0]
[1743245724915,14.57815345,1872.7,1872.6,5.0]
[1743245726201,23.99933358,1872.7,1872.6,5.0]
[1743245727411,9.07013223,1872.2,1872.1,0.05]
[1743245727731,14.21318923,1872.2,1872.1,0.05]
[1743245727932,16.16862015,1872.2,1872.1,0.05]
[1743245728565,10.98262015,1872.2,1872.1,0.05]
[1743245728760,16.16862015,1872.2,1872.1,0.05]
[1743245729439,16.56216109,1872.2,1872.1,0.05]
[1743245731276,3.34817317,1872.2,1872.1,0.05]
[1743245731437,2.95463223,1872.4,1872.2,0.7826]
[1743245731934,2.95463223,1872.4,1872.2,6.12389]
[1743245732280,8.34019,1872.6,1872.2,6.12389]
[1743245732281,9.42118013,1872.7,1872.4,5.34067]
[1743245732441,6.36118013,1872.7,1872.4,5.34067]
[1743245733069,2.95463223,1872.6,1872.4,5.34067]
[1743245733275,2.95463223,1872.6,1872.3,5.34099]
[1743245733639,2.95463223,1872.4,1872.3,5.34099]
[1743245733842,2.95463223,1872.4,1872.2,6.12374]
[1743245734170,6.51027601,1872.6,1872.3,5.34098]
[1743245734481,6.51027601,1872.6,1872.2,6.12369]
[1743245734482,2.95463223,1872.5,1872.2,6.12369]
[1743245734784,2.95463223,1872.5,1872.2,11.46482]
[1743245735073,2.90463223,1872.5,1872.2,11.46482]
[1743245735463,2.90463223,1872.5,1872.3,5.34093]
[1743245735772,2.90463223,1872.5,1872.1,0.05]
[1743245735773,3.31210605,1872.5,1872.1,0.05]
[1743245735936,2.95463223,1872.2,1872.1,0.05]
[1743245736357,8.29593223,1872.2,1872.1,0.05]
[1743245736770,2.95463223,1872.2,1872.1,0.05]
[1743245737641,8.29593223,1872.2,1872.1,0.05]
[1743245737841,9.74114945,1872.2,1872.1,0.05]
[1743245738378,10.13648034,1872.2,1872.1,0.05]
[1743245739638,4.79518034,1872.2,1872.1,0.05]
[1743245740476,10.13648034,1872.2,1872.1,0.05]
[1743245740968,13.13648034,1872.2,1872.1,0.05]
[1743245741177,19.14058034,1872.2,1872.1,0.05]
[1743245741487,28.70521257,1872.2,1872.1,0.05]
[1743245741781,25.75058034,1872.2,1872.1,0.05]
[1743245742081,36.85940434,1872.2,1872.1,0.05]
[1743245742278,0.8151,1871.7,1871.3,5.0]
[1743245742482,2.95463223,1871.4,1871.3,5.0]
[1743245743179,6.8751,1871.7,1871.3,10.3436]
[1743245743472,6.06,1871.7,1871.3,6.03436]
[1743245743674,6.06,1871.7,1871.3,11.37821]
[1743245743675,2.95463223,1871.5,1871.3,11.37821]
[1743245744042,2.95463223,1871.5,1871.3,5.0]
[1743245744240,2.95463223,1871.5,1871.3,10.34381]
[1743245745539,2.95463223,1871.5,1871.3,5.0]
[1743245746650,11.29797223,1871.5,1871.3,5.0]
[1743245747534,5.95463223,1871.5,1871.3,5.0]
[1743245747770,5.95463223,1871.5,1871.3,10.34371]
[1743245748273,5.95463223,1871.5,1871.3,5.0]
[1743245748570,2.95463223,1871.5,1871.3,10.34363]
[1743245748781,9.01463223,1871.7,1871.4,5.34359]
[1743245749077,9.01463223,1871.7,1871.5,5.34316]
[1743245749262,9.01463223,1871.7,1871.3,10.34383]
[1743245749634,14.35750223,1871.7,1871.3,10.34383]
[1743245749839,2.95463223,1871.4,1871.3,5.0]
[1743245750054,8.19363223,1871.4,1871.3,5.0]
[1743245750341,13.53722223,1871.4,1871.3,5.0]
[1743245751046,2.95463223,1871.4,1871.3,5.0]
[1743245751443,0.39615576,1871.7,1871.3,5.0]
[1743245751781,5.34247,1871.8,1871.5,5.34329]
[1743245751782,2.95463223,1871.8,1871.5,5.34329]
[1743245752083,2.95463223,1872.0,1871.7,6.09683]
[1743245752457,8.29655223,1872.0,1871.7,0.7541]
[1743245752667,10.8529825,1872.0,1871.7,0.7541]
[1743245753178,2.95463223,1871.9,1871.6,5.34301]
[1743245753382,2.95463223,1871.9,1871.5,5.3433]
[1743245753383,5.34351,1871.5,1871.3,5.0]
[1743245753550,8.29822223,1871.4,1871.3,5.0]
[1743245753737,13.46739545,1871.4,1871.3,5.0]
[1743245754169,14.01739545,1871.4,1871.3,5.0]
[1743245756279,19.27339545,1871.4,1871.3,5.0]
[1743245756782,25.33339545,1871.4,1871.3,5.0]
[1743245756968,20.07739545,1871.4,1871.3,5.0]
[1743245757269,25.33139545,1871.4,1871.3,5.0]
[1743245757446,25.33839545,1871.4,1871.3,5.0]
[1743245757641,20.07739545,1871.4,1871.3,5.0]
[1743245757848,25.33839545,1871.4,1871.3,5.0]
[1743245758795,26.41448787,1871.4,1871.3,5.0]
[1743245758996,26.80830073,1871.4,1871.3,5.0]
[1743245760500,5.34416,1871.2,1871.1,0.05]
[1743245760671,21.66842446,1871.2,1871.1,0.05]
[1743245761071,5.34603,1870.6,1870.3,0.7541]
[1743245761257,5.34603,1870.6,1870.1,0.8041]
[1743245761258,2.95463223,1870.4,1870.1,0.8041]
[1743245761459,2.95463223,1870.4,1870.2,5.34699]
[1743245761659,2.95463223,1870.4,1870.1,6.15121]
[1743245761660,2.95463223,1870.4,1870.1,6.1512]
[1743245761986,2.95463223,1870.2,1870.1,0.8041]
[1743245762161,2.95463223,1870.2,1870.1,0.05]
[1743245762356,2.95463223,1870.4,1870.2,5.34692]
[1743245762576,2.95463223,1870.4,1870.1,5.39717]
[1743245763160,2.95463223,1870.4,1870.1,10.74428]
[1743245763388,2.95463223,1870.4,1870.2,5.34696]
[1743245763895,2.95463223,1870.4,1870.1,5.39728]
[1743245764466,2.95463223,1870.4,1870.1,0.05]
[1743245764796,2.95463223,1870.2,1870.1,0.05]
[1743245765188,9.06545223,1870.2,1870.1,0.05]
[1743245766581,4.26843223,1870.2,1870.1,0.05]
[1743245766895,3.71843223,1870.2,1870.1,0.05]
[1743245767092,9.00243223,1870.2,1870.1,0.05]
[1743245767290,15.78438845,1870.2,1870.1,0.05]
[1743245767695,1.43493622,1870.2,1870.1,0.05]
[1743245767895,11.78563223,1870.2,1870.1,0.05]
[1743245768103,18.67545223,1870.2,1870.1,0.05]
[1743245768392,23.96645223,1870.2,1870.1,0.05]
[1743245768595,25.30675127,1870.2,1870.1,0.05]
[1743245768792,6.11139,1870.0,1869.9,0.1112828]
[1743245769107,4.3138,1869.6,1869.5,5.0]
[1743245769310,8.26463223,1869.6,1869.5,5.0]
[1743245769484,5.31,1869.6,1869.5,5.0]
[1743245769815,10.65873,1869.6,1869.5,5.0]
[1743245770016,5.31,1869.6,1869.5,5.0]
[1743245770514,6.67133122,1869.6,1869.5,5.0]
[1743245770695,8.26463223,1869.6,1869.5,5.0]
[1743245770900,14.97253,1869.6,1869.5,5.0]
[1743245771206,21.03253,1869.6,1869.5,5.0]
[1743245771617,6.66368,1869.2,1869.1,0.05]
[1743245771809,25.25664723,1869.2,1869.1,0.05]
[1743245772379,19.87964723,1869.2,1869.1,0.05]
[1743245772819,9.06,1869.2,1869.1,0.05]
[1743245773115,3.0,1869.4,1869.1,0.05]
[1743245773279,9.11867047,1869.5,1869.1,5.40003]
[1743245773476,2.40023824,1869.5,1869.4,5.3493]
[1743245773672,2.40023824,1869.5,1869.4,6.419182]
[1743245774573,2.40023824,1869.5,1869.2,0.7982]
[1743245774779,2.40023824,1869.5,1869.3,5.34957]
[1743245775079,2.40023824,1869.5,1869.2,5.40324565]
[1743245775301,2.40023824,1869.5,1869.3,5.34942]
[1743245775702,2.40023824,1869.5,1869.3,5.34958]
[1743245775908,2.40023824,1869.5,1869.2,5.34971]
[1743245776086,2.40023824,1869.5,1869.1,5.40014]
[1743245776410,7.74937824,1869.5,1869.1,0.05]
[1743245776611,14.21181168,1869.5,1869.1,0.05]
[1743245776992,8.86260168,1869.5,1869.1,0.05]
[1743245777308,14.21175168,1869.5,1869.1,0.05]
[1743245777520,8.86260168,1869.5,1869.1,0.05]
[1743245777679,14.21176168,1869.5,1869.1,0.05]
[1743245777874,1.42117617,1869.4,1869.1,0.05]
[1743245778821,2.40023824,1869.5,1869.2,5.3497]
[1743245779185,2.40023824,1869.5,1869.3,5.34958]
[1743245779808,2.40023824,1869.5,1869.4,5.3493]
[1743245780490,2.40023824,1869.5,1869.3,6.11264]
[1743245781021,2.40023824,1869.5,1869.4,5.3493]
[1743245782123,2.40023824,1869.5,1869.3,5.34944]
[1743245782705,2.40023824,1869.5,1869.2,5.34985]
[1743245782894,2.40023824,1869.5,1869.4,5.3493]
[1743245783090,2.40023824,1869.5,1869.3,5.34934]
[1743245783304,2.40023824,1869.5,1869.2,5.34984]
[1743245783596,3.18156206,1869.5,1869.2,5.34984]
[1743245784764,3.13156206,1869.5,1869.3,5.34951]
[1743245785094,3.13156206,1869.5,1869.2,5.34974]
[1743245785295,8.7323762,1869.4,1869.1,0.05]
[1743245785516,0.87323762,1869.3,1869.1,0.05]
[1743245786302,3.13156206,1869.5,1869.2,5.34975]
[1743245786506,3.13156206,1869.5,1869.2,10.69942]
[1743245786703,3.13156206,1869.5,1869.2,5.34976]
[1743245786934,3.13156206,1869.5,1869.3,5.34937]
[1743245787094,2.35023824,1869.5,1869.3,5.34937]
[1743245787642,2.35023824,1869.5,1869.4,5.3493]
[1743245787818,2.35023824,1869.5,1869.3,5.34937]
[1743245788015,2.35023824,1869.5,1869.3,10.69884]
[1743245788229,2.35023824,1869.5,1869.2,5.34988]
[1743245788403,2.35023824,1869.5,1869.2,10.69964]
[1743245788615,2.35023824,1869.5,1869.3,5.34934]
[1743245788816,3.12616206,1869.5,1869.1,5.39991]
[1743245789032,8.47519206,1869.5,1869.1,5.39991]
[1743245789218,5.34947,1869.4,1869.1,0.05]
[1743245790037,5.74808737,1869.4,1869.1,0.05]
[1743245790435,3.14193824,1869.5,1869.2,5.34964]
[1743245790659,2.35023824,1869.5,1869.2,5.34964]
[1743245790938,2.35023824,1869.5,1869.4,5.3493]
[1743245791162,2.35023824,1869.5,1869.4,6.1755]
[1743245792542,2.35023824,1869.5,1869.2,0.8053]
[1743245792704,5.34945,1869.4,1869.1,0.05]
[1743245793049,0.534945,1869.3,1869.1,0.05]
[1743245793352,6.16908,1869.2,1869.1,0.05]
[1743245793705,11.58108,1869.2,1869.1,0.05]
[1743245794510,5.943945,1869.3,1869.1,0.05]
[1743245794724,0.534945,1869.3,1869.1,0.05]
[1743245794931,6.16853,1869.4,1869.1,0.05]
[1743245795118,5.34972,1869.3,1869.1,0.05]
[1743245795643,6.16858,1869.4,1869.1,0.05]
[1743245796743,5.34964,1869.3,1869.1,0.05]
[1743245797145,5.34988,1869.2,1869.1,0.05]
[1743245797303,6.419832,1869.2,1869.1,0.05]
[1743245797507,1.069952,1869.2,1869.1,0.05]
[1743245797708,5.3496,1869.3,1869.1,0.05]
[1743245798046,0.8192,1869.4,1869.1,5.40003]
[1743245798412,2.35023824,1869.5,1869.2,5.34987]
[1743245798748,2.35023824,1869.5,1869.3,5.34957]
[1743245799510,2.35023824,1869.5,1869.2,6.15506]
[1743245799940,2.35023824,1869.5,1869.2,0.8053]
[1743245800124,2.35023824,1869.5,1869.2,6.15517]
[1743245800834,2.35023824,1869.5,1869.2,6.15502]
[1743245801037,2.35023824,1869.5,1869.2,6.15501]
[1743245801347,2.35023824,1869.5,1869.3,5.34937]
[1743245801753,2.35023824,1869.5,1869.2,6.15507]
[1743245801919,5.34988,1869.2,1869.1,0.05]
[1743245802122,5.884868,1869.2,1869.1,0.05]
[1743245802421,33.185402,1869.2,1868.1,0.9665828]
[1743245802624,3.3828562,1868.5,1868.1,0.1612828]
[1743245802932,5.3526,1868.3,1868.1,0.1612828]
[1743245803110,5.35259,1868.3,1868.1,0.1612828]
[1743245803309,5.35274,1868.2,1868.1,0.1612828]
[1743245803538,0.33828562,1868.4,1868.1,0.1612828]
[1743245803840,5.35274,1868.3,1868.1,0.1612828]
[1743245804232,6.06,1868.7,1868.2,5.35259]
[1743245804444,3.3828562,1868.6,1868.1,0.9665828]
[1743245804662,0.8192,1868.4,1868.1,0.1612828]
[1743245804829,5.35274,1868.2,1868.1,0.1612828]
[1743245805229,17.7955962,1868.2,1868.1,0.1612828]
[1743245805463,21.47962882,1868.2,1868.1,0.1612828]
[1743245805674,9.19403262,1868.2,1868.1,0.1612828]
[1743245805969,5.35219,1868.4,1868.1,0.1612828]
[1743245806140,8.7355162,1868.3,1868.1,0.1612828]
[1743245806485,5.35274,1868.2,1868.1,0.1612828]
[1743245807050,8.7355162,1868.3,1868.1,0.1612828]
[1743245807228,5.35266,1868.3,1868.1,0.1612828]
[1743245807431,11.363926,1868.3,1868.1,0.1612828]
[1743245807636,9.5541562,1868.5,1868.1,0.1612828]
[1743245807637,0.8192,1868.5,1868.1,0.1612828]
[1743245807938,17.91264562,1868.7,1868.1,0.1612828]
[1743245808139,7.08620562,1868.7,1868.1,5.5141928]
[1743245808337,7.08620562,1868.7,1868.2,14.5]
[1743245808666,5.35175,1868.6,1868.1,0.1612828]
[1743245809039,7.08620562,1868.7,1868.2,5.35268]
[1743245809368,12.43768562,1868.7,1868.1,5.5142328]
[1743245809667,5.35175,1868.6,1868.1,2.23775608]
[1743245810029,14.0864562,1868.6,1868.1,0.1612828]
[1743245810225,5.35194,1868.5,1868.1,0.1612828]
[1743245810531,10.46906182,1868.7,1868.1,0.1612828]
[1743245810762,15.82052182,1868.7,1868.1,5.5142928]
[1743245810971,5.35172,1868.6,1868.1,0.1612828]
[1743245811130,5.887162,1868.5,1868.1,0.1612828]
[1743245811333,5.35219,1868.4,1868.1,0.1612828]
[1743245811762,9.2700182,1868.5,1868.1,0.1612828]
[1743245812262,0.535172,1868.5,1868.1,0.1612828]
[1743245812428,6.3078,1868.4,1868.1,0.1612828]
[1743245812637,5.98327,1868.3,1868.1,0.1612828]
[1743245813057,0.63078,1868.3,1868.1,0.1612828]
[1743245813231,6.50720562,1868.7,1868.1,0.1612828]
[1743245813558,11.85864562,1868.7,1868.1,0.1612828]
[1743245813760,5.35163,1868.6,1868.1,0.1612828]
[1743245813964,10.7035,1868.6,1868.1,0.1612828]
[1743245814130,1.07035,1868.5,1868.1,0.1612828]
[1743245814330,5.35163,1868.6,1868.1,0.1612828]
[1743245815254,11.85852562,1868.7,1868.1,5.5141228]
[1743245815457,5.3519,1868.5,1868.1,0.1612828]
[1743245815665,5.3516,1868.6,1868.1,0.1612828]
[1743245815844,11.85856562,1868.7,1868.1,0.1612828]
[1743245816044,11.85856562,1868.7,1868.1,6.14261408]
[1743245816260,6.06,1868.9,1868.2,0.7698]
[1743245816431,5.30694232,1869.0,1868.5,0.7698]
[1743245816432,11.66538,1869.0,1868.5,0.7698]
[1743245816637,5.35098,1868.9,1868.5,0.7698]
[1743245816971,3.3828562,1868.8,1868.2,0.7698]
[1743245817136,5.35145,1868.7,1868.2,0.7698]
[1743245817333,9.2689842,1868.8,1868.2,0.7698]
[1743245817631,8.7338862,1868.8,1868.2,0.7698]
[1743245818051,5.35103,1868.8,1868.2,0.7698]
[1743245818234,5.35148,1868.7,1868.2,0.7698]
[1743245818661,14.0851762,1868.8,1868.2,0.7698]
[1743245818876,8.7338862,1868.8,1868.2,0.7698]
[1743245819238,8.7338862,1868.8,1868.2,1.39820628]
[1743245819570,5.35103,1868.8,1868.2,1.39820628]
[1743245819879,10.83778,1868.9,1868.2,6.75094628]
[1743245820057,0.4052183,1869.0,1868.5,0.7698]
[1743245820261,0.4052183,1869.0,1868.5,1.381995]
[1743245820262,5.479,1869.0,1868.5,1.381995]
[1743245820453,5.479,1869.0,1868.5,0.7698]
[1743245820655,10.83027,1869.1,1868.5,0.7698]
[1743245820838,11.23927091,1869.1,1868.5,0.7698]
[1743245821235,8.7324062,1869.4,1868.7,5.35127]
[1743245821464,6.22297062,1869.3,1868.8,0.7698]
[1743245821779,3.87324062,1869.3,1868.8,0.7698]
[1743245821976,0.87324062,1869.3,1868.8,0.7698]
[1743245822297,2.35023824,1869.5,1869.0,5.35044]
[1743245822475,2.35023824,1869.5,1869.1,0.7698]
[1743245822637,2.35023824,1869.5,1869.2,5.34967]
[1743245822841,2.35023824,1869.5,1869.3,0.7698]
[1743245823179,2.35023824,1869.5,1869.3,6.11936]
[1743245823380,2.35023824,1869.5,1869.3,0.7698]
[1743245823539,2.35023824,1869.5,1869.3,6.11919]
[1743245823874,2.35023824,1869.5,1869.3,12.080559]
[1743245824273,2.35023824,1869.5,1869.3,12.080579]
[1743245824465,2.35023824,1869.5,1869.3,12.080559]
[1743245824977,2.35023824,1869.5,1869.4,5.3493]
[1743245825161,2.35023824,1869.5,1869.4,6.1579]
[1743245825361,2.35023824,1869.5,1869.4,7.3698209]
[1743245825954,2.35023824,1869.5,1869.4,2.0205209]
[1743245826169,2.35023824,1869.5,1869.4,0.8086]
[1743245826354,2.35023824,1869.5,1869.4,6.1579]
[1743245827161,2.35023824,1869.5,1869.4,11.6289]
[1743245827371,2.35023824,1869.5,1869.4,6.1579]
[1743245827560,2.35023824,1869.5,1869.4,11.6309]
[1743245827885,6.06,1870.8,1870.2,0.8086]
[1743245828103,6.20569,1870.9,1870.2,6.15544]
[1743245828260,11.55088,1870.9,1870.2,6.15562]
[1743245828472,3.8605,1870.9,1870.3,5.34673]
[1743245828669,0.05,1870.9,1870.4,5.39976186]
[1743245828879,0.05,1870.9,1870.5,6.74806105]
[1743245829086,0.05,1870.9,1870.5,6.69460619]
[1743245829285,0.05,1870.9,1870.5,1.34857619]
[1743245829483,0.05,1870.9,1870.5,0.8086]
[1743245830377,5.39514,1870.9,1870.1,5.476]
[1743245830583,5.3457,1870.7,1870.2,0.8086]
[1743245830782,5.34545,1870.8,1870.2,0.8086]
[1743245831087,5.39502,1870.9,1870.2,6.15559]
[1743245831403,5.39502,1870.9,1870.3,0.615559]
[1743245831905,0.05,1870.9,1870.3,0.615559]
[1743245832402,0.05,1870.9,1870.4,0.8086]
[1743245832591,5.39516,1870.9,1870.4,0.8086]
[1743245833611,0.05,1870.9,1870.4,0.8086]
[1743245834179,5.39516,1870.9,1870.4,0.8086]
[1743245834533,3.3828562,1870.7,1870.3,0.615559]
[1743245834681,5.34689,1870.3,1870.0,0.8086]
[1743245834875,5.34661,1870.4,1870.0,0.8086]
[1743245835218,10.69319,1870.4,1870.0,0.8086]
[1743245835417,5.34658,1870.4,1870.0,0.2586]
[1743245835921,10.82992,1870.6,1870.0,0.2586]
[1743245836223,11.64083,1870.8,1870.1,5.3473]
[1743245836516,5.34569,1870.7,1870.1,0.0534662]
[1743245836724,5.485,1870.8,1870.1,5.34703]
[1743245837027,5.485,1870.8,1870.2,5.34685]
[1743245838528,5.485,1870.8,1870.3,6.18628072]
[1743245838820,5.485,1870.8,1870.4,5.96506807]
[1743245839021,0.05,1870.9,1870.4,5.96506807]
[1743245839229,0.05,1870.9,1870.5,0.05345413]
[1743245839533,0.05,1870.9,1870.5,0.7862]
[1743245839996,0.05,1870.9,1870.5,0.83965297]
[1743245840203,0.05,1870.9,1870.5,0.7862]
[1743245841234,0.05,1870.9,1870.5,0.83965296]
[1743245841549,0.05,1870.9,1870.5,0.83965289]
[1743245841756,0.05,1870.9,1870.5,0.7862]
[1743245844018,0.05,1870.9,1870.6,0.05345294]
[1743245844353,0.05,1870.9,1870.5,0.7862]
[1743245845543,5.39505,1870.9,1870.5,0.7862]
[1743245845852,0.05,1870.9,1870.5,0.7862]
[1743245848727,5.34613,1870.6,1870.1,0.7862]
[1743245849268,5.346,1870.6,1870.1,0.7862]
[1743245849656,5.3462,1870.5,1870.1,0.7862]
[1743245849840,5.34665,1870.4,1870.1,0.7862]
[1743245850172,5.34559,1870.7,1870.1,0.7862]
[1743245850388,10.69078,1870.8,1870.1,0.7862]
[1743245850661,5.34531,1870.8,1870.1,5.40064579]
[1743245850865,5.34531,1870.8,1870.3,0.7862]
[1743245852135,10.69085,1870.8,1870.3,0.7862]
[1743245852331,5.34531,1870.8,1870.3,0.7862]
[1743245853934,10.74018,1870.9,1870.3,0.7862]
[1743245854162,0.05,1870.9,1870.4,0.05345918]
[1743245854367,5.39503,1870.9,1870.3,0.7862]
[1743245854870,0.05,1870.9,1870.3,6.1329]
[1743245855071,5.39503,1870.9,1870.3,0.7862]
[1743245855284,5.34544,1870.8,1870.4,0.05345517]
[1743245855444,10.74038,1870.9,1870.3,0.7862]
[1743245856181,5.34564,1870.7,1870.3,0.7862]
[1743245856342,5.34536,1870.8,1870.3,0.7862]
[1743245856786,10.69079,1870.8,1870.3,0.7862]
[1743245856944,5.34536,1870.8,1870.3,0.7862]
[1743245857777,5.80372919,1870.9,1870.3,0.7862]
[1743245857985,0.05,1870.9,1870.5,0.7914]
[1743245858136,0.05,1870.9,1870.7,0.7914]
[1743245859348,5.39516,1870.9,1870.7,0.7914]
[1743245859551,0.05,1870.9,1870.2,0.7914]
[1743245859741,10.69105,1870.8,1870.2,0.7914]
[1743245860073,5.39505,1870.9,1870.2,0.7914]
[1743245860266,0.05,1870.9,1870.4,0.7914]
[1743245861089,0.05,1870.9,1870.6,5.34584]
[1743245861241,0.05,1870.9,1870.7,1.325984]
[1743245861442,0.05,1870.9,1870.7,0.7914]
[1743245861851,0.05,1870.9,1870.8,0.7914]
[1743245864876,0.05,1870.9,1870.8,0.84484772]